Cogmind - Beta 15 @@@ ROGUE MODE // 2025.06.18 @ 22:54:40 Player: CheifClapdad Result: Self-destructed Performance ------------- Evolutions (7) 3500 Regions Visited (11) 2200 Robots Destroyed (46) 230 Value Destroyed (1783) 1783 Prototype IDs (16) 320 Alien Tech Used (0) 0 Bonus (1916) 1916 TOTAL SCORE: 9949 Bonus ------- High Alert Combat Kills 116 Registered with UFD 300 Met Optimus in HQ 500 Met Warlord at Base 500 MAIN.C Attacked Warlord 500 Cogmind --------- Core Integrity 640/1300 Matter 214/300 Energy 170/170 System Corruption 2% Temperature Cool (0) Movement Core (200) Ox3 Location -3/Research Parts ------- > --- POWER (2) -------- Light Antimatter Reactor > --- PROPULSION (6) --- (None) > --- UTILITY (9) ------ Advanced Weight Redist. System > --- WEAPON (4) ------- (None) > --- INVENTORY (5) ---- Light Antimatter Reactor Medium Treads Improved Plasma Cutter CPS Tube (2) RU-N14's Throwing Claymores v3 (1) Peak State ------------ > --- POWER ------------ Light Antimatter Reactor Light Antimatter Reactor > --- PROPULSION ------- Makeshift Hover Unit Makeshift Hover Unit Improved Antigrav System Electron Diverter Electron Diverter > --- UTILITY ---------- Advanced Coolant Injector Energy Well Advanced Weight Redist. System Stasis Canceller Experimental Cloaking Device Thermal Barrier Advanced Shield Generator > --- WEAPON ----------- Backup Laser III Backup Laser III > --- INVENTORY -------- Antimatter Reactor Improved KE Penetrator Improved Plasma Cutter CPS Tube RU-N14's Throwing Claymores v3 [Rating: 104] Favorites ----------- Power Ion Engine Engine Ion Engine Power Core Nuclear Core Reactor Light Antimatter Reactor Propulsion Wheel Treads Armored Treads Leg Flexi-carbon Leg Wheel Wheel Hover Unit Makeshift Hover Unit Flight Unit Electron Diverter Utility Large Storage Unit Device Advanced Weight Redist. System Storage Large Storage Unit Processor Enhanced Optical Array Protection Improved Light Armor Plating Weapon Subdweller Machine Gun Energy Gun Backup Laser III Ballistic Gun Subdweller Machine Gun Ballistic Cannon Enhanced Gauss Cannon Launcher Heavy Missile Launcher Special Weapon Improved Plasma Cutter Build | -11 -10 -10 -10 -7 -5 -4 -4 -4 -4 -3 -3 ------- Run | Yrd Mat Min Sub Scr Fac Fac Upp Upp War Pro Res Slots Evolved 14 | . . . . . 10 2 . . . . 2 Power 1 | . . . . . 1 . . . . . . Propulsion 4 | . . . . . 2 2 . . . . . Utility 7 | . . . . . 5 . . . . . 2 Weapon 2 | . . . . . 2 . . . . . . Parts Attached 96 | 8 1 1 5 11 32 . 5 11 11 . 11 Power 13 | 1 . . 1 1 3 . 1 2 1 . 3 Engine 4 | 1 . . 1 1 1 . . . . . . Core 2 | . . . . . 2 . . . . . . Reactor 7 | . . . . . . . 1 2 1 . 3 Propulsion 27 | 2 . . 3 3 7 . 1 3 3 . 5 Treads 4 | 1 . . 1 1 1 . . . . . . Leg 2 | . . . . . . . 1 . 1 . . Wheel 11 | 1 . . 2 2 6 . . . . . . Hover 3 | . . . . . . . . 3 . . . Flight 7 | . . . . . . . . . 2 . 5 Utility 24 | 2 . . . 5 8 . . 5 3 . 1 Device 14 | 1 . . . . 6 . . 4 2 . 1 Storage 6 | 1 . . . 3 . . . 1 1 . . Processor 2 | . . . . . 2 . . . . . . Hackware . | . . . . . . . . . . . . Protection 2 | . . . . 2 . . . . . . . Artifact . | . . . . . . . . . . . . Weapon 32 | 3 1 1 1 2 14 . 3 1 4 . 2 Energy Gun 11 | 2 . . . . 4 . 2 . 2 . 1 Energy Cannon . | . . . . . . . . . . . . Ballistic Gun 12 | 1 1 . 1 1 6 . . 1 . . 1 Ballistic Cannon 4 | . . . . 1 3 . . . . . . Launcher 2 | . . 1 . . 1 . . . . . . Special Weapon 3 | . . . . . . . 1 . 2 . . Impact Weapon . | . . . . . . . . . . . . Slashing Weapon . | . . . . . . . . . . . . Piercing Weapon . | . . . . . . . . . . . . Special Melee Weapon . | . . . . . . . . . . . . Unidentified Prototypes 10 | . . . . . 2 . . . 8 . . Parts Lost 39 | . . . 3 . 18 . 1 . . 1 16 Power 7 | . . . 1 . 2 . . . . . 4 Propulsion 17 | . . . 1 . 5 . 1 . . 1 9 Utility 10 | . . . 1 . 6 . . . . . 3 Weapon 5 | . . . . . 5 . . . . . . Highest Loss Streak 12 | . . . 3 . 12 . 1 . . 1 8 To Critical Strikes . | . . . . . . . . . . . . Average Backups 8 | 3 7 8 6 11 12 5 4 4 4 4 4 Power . | . 1 1 . . . . . 1 1 1 1 Propulsion 2 | 2 4 4 2 2 1 1 . . . . . Utility 1 | . . . . 2 1 . . . . . . Weapon 3 | . 2 3 3 4 7 2 2 2 2 1 1 Tool/Special . | . . . . . . . . . . . . Unused Backups 21 | 1 1 . 1 4 11 . . . 1 . 2 Power 2 | . . . . 1 . . . . . . 1 Propulsion 6 | . 1 . 1 1 2 . . . . . 1 Utility 3 | 1 . . . . 2 . . . . . . Weapon 9 | . . . . 1 7 . . . 1 . . Tool/Special 1 | . . . . 1 . . . . . . . Average Slot Usage (%) 79 | . 99 100 95 99 70 . 5 53 61 65 44 Engine 8 | . 14 14 14 14 3 . . . . . . Reactor 1 | . . . . . . . . 9 9 10 6 Treads 8 | . 14 14 13 14 2 . . . . . . Wheel 9 | . 14 14 14 13 12 . . . . . . Hover 2 | . . . . . . . . 14 15 11 6 Device 7 | . 14 14 9 . 10 . . 19 22 24 14 Storage 10 | . 14 14 14 16 4 . . 4 5 1 . Protection 5 | . . . . 11 2 . . . . . . Energy Gun 1 | . 9 . . . 3 . 2 . 1 6 3 Ballistic Gun 16 | . 17 26 27 25 9 . . 3 4 . 1 Ballistic Cannon 1 | . . . . 2 5 . . . . . . Peak Build Rating 104 | 7 7 7 9 21 67 2 23 70 104 104 89 Average Rating 29 | 5 6 7 8 14 47 2 8 61 71 84 66 On Entrance 25 | . 7 7 7 8 21 2 2 8 64 104 76 Naked Turns 277 | . . . . . 53 37 187 . . . . Heaviest Build 74 | 13 13 13 17 44 74 . 6 45 55 45 32 Greatest Support 49 | 20 16 20 20 20 44 3 3 45 45 45 49 Greatest Overweight (x) 4 | . . . . 4 3 . 1 1 4 1 4 Average Overweight (x) 1 | . . . . 2 1 . . . . . . Largest Inventory Capacity 15 | 8 8 8 8 15 15 5 5 5 5 5 5 Average Capacity 10 | 7 8 8 8 13 14 5 5 5 5 5 5 Most Carried 15 | 8 8 8 8 15 15 5 5 5 5 5 5 Average Carried 9 | 3 7 8 6 11 13 5 4 4 4 4 4 Final Capacity 15 | 8 8 8 8 15 5 5 5 5 5 5 5 Final Carried 15 | 6 8 8 5 15 5 5 4 5 5 5 5 Class Distribution -------------------- 60% | Mutant 28% | Derelict-Mutant 5% | Derelict-Tank 4% | Scavenger-Skirmisher Dominant Class ---------------- Mutant | -10/Materials Mutant | -10/Mines Mutant | -10/Subcaves Mutant | -7/Scraptown Derelict-Tank | -5/Factory Mutant | -4/Factory Mutant | -4/Upper Caves Derelict-Mutant | -4/Upper Caves Derelict-Mutant | -4/Warlord Derelict-Mutant | -3/Proximity Caves Derelict-Mutant | -3/Research Resources | -11 -10 -10 -10 -7 -5 -4 -4 -4 -4 -3 -3 ----------- Run | Yrd Mat Min Sub Scr Fac Fac Upp Upp War Pro Res Matter Collected 2120 | 292 . 43 122 213 702 . 106 298 63 86 195 Remotely . | . . . . . . . . . . . . Salvage Created 1771 | 128 . 46 121 . 1131 . . . . 86 259 Parts 71 | 5 . 3 5 . 42 . . . . 2 14 Haulers Intercepted 1 | . . . . . . . . . . . 1 Recyclers Shooed 4 | . . . . . 4 . . . . . . Parts Field Recycled . | . . . . . . . . . . . . Retrieved Matter . | . . . . . . . . . . . . Parts Self-Destructed 9 | . . . 7 . . . . . . 2 . Prevented . | . . . . . . . . . . . . Kills | -11 -10 -10 -10 -7 -5 -4 -4 -4 -4 -3 -3 ------- Run | Yrd Mat Min Sub Scr Fac Fac Upp Upp War Pro Res Combat Hostiles Destroyed 36 | . . 3 3 . 22 . . . . 2 6 Guns 11 | . . 2 3 . 3 . . . . . 3 Cannons 16 | . . . . . 14 . . . . . 2 AOE 9 | . . 1 . . 5 . . . . 2 1 Classes Destroyed 13 | 2 . 1 2 . 7 . . . . . 1 Worker 2 | . . . . . 2 . . . . . . Builder 1 | . . . . . 1 . . . . . . Tunneler 1 | 1 . . . . . . . . . . . Hauler 1 | . . . . . . . . . . . 1 Recycler 4 | 1 . . . . 3 . . . . . . Mechanic 1 | . . . . . 1 . . . . . . Swarmer 12 | . . 3 . . 4 . . . . . 5 Grunt 15 | . . . . . 13 . . . . 2 . Sentry 1 | . . . . . 1 . . . . . . Hunter 3 | . . . . . 2 . . . . . 1 Programmer 2 | . . . . . 2 . . . . . . Artisan 1 | . . . 1 . . . . . . . . Subdweller 3 | . . . 3 . . . . . . . . Best Kill Streak 7 | 2 . 3 2 . 7 . . . . 2 4 Combat Bots Only 5 | . . 3 2 . 5 . . . . 2 4 Max Kills in Single Turn 3 | 1 . 2 1 . 3 . . . . 2 2 Gunslinging . | . . . . . . . . . . . . Exploded 2 | . . 1 . . 2 . . . . 2 1 Melee . | . . . . . . . . . . . . Uniques/NPCs Destroyed . | . . . . . . . . . . . . Combat | -11 -10 -10 -10 -7 -5 -4 -4 -4 -4 -3 -3 -------- Run | Yrd Mat Min Sub Scr Fac Fac Upp Upp War Pro Res Hostile Shots Fired 501 | . . 6 30 . 247 . 40 2 24 28 124 Missed 173 | . . . 8 . 85 . 12 1 9 14 44 Hits 328 | . . 6 22 . 162 . 28 1 15 14 80 Melee 3 | . . . . . . . . . . . 3 Projectile 325 | . . 6 22 . 162 . 28 1 15 14 77 AOE 1 | . . . . . . . . . . . 1 Critical Strikes 17 | . . . . . 11 . 1 . 2 . 3 Damage Taken 5977 | . . 58 445 . 2890 . 492 12 260 150 1670 Core 1867 | . . 22 18 . 701 . 350 . 92 24 660 Absorbed by Shields 507 | . . . . . 368 . . 5 95 39 . Ignored by Resistances 145 | . . . . . . . . . . 76 69 Core Remaining (%) 68 | 100 . . . 84 29 . . . . 59 . Volleys Fired 133 | 4 . 2 31 . 62 . . . . 1 33 Largest 4 | 2 . 2 2 . 4 . . . . 2 2 Hottest 189 | 60 . 50 50 . 189 . . . . 40 73 Shots Fired 294 | 8 . 4 51 . 168 . . . . 2 61 Gun 209 | 8 . 3 48 . 94 . . . . 1 55 Cannon 70 | . . . . . 70 . . . . . . Launcher 8 | . . 1 3 . 4 . . . . . . Special 7 | . . . . . . . . . . 1 6 Kinetic 211 | 4 . 3 48 . 131 . . . . . 25 Thermal 67 | . . . . . 33 . . . . 1 33 Explosive 12 | . . 1 3 . 4 . . . . 1 3 Electromagnetic 4 | 4 . . . . . . . . . . . Robot Hit Streak 10 | 3 . 3 7 . 10 . . . . 4 6 Robot Miss Streak 4 | 1 . 1 2 . 4 . . . . . 3 Penetration Max 1 | . . . . . 1 . . . . . 1 Secondary Targets 1 | . . . . . 1 . . . . . . Max Gunslinging Chain 1 | . . . . . 1 . . . . . . Shots Hit Robots 174 | 5 . 2 27 . 100 . . . . 2 38 Core Hits 101 | 3 . 3 6 . 67 . . . . 4 18 Critical Kills 1 | . . . . . . . . . . . 1 Critical Parts Destroyed 3 | . . . . . . . . . . . 3 Critical Strikes 20 | 1 . . . . 13 . . . . 1 5 Burn 3 | . . . . . 3 . . . . . . Destroy 4 | . . . . . . . . . . . 4 Blast 10 | . . . . . 10 . . . . . . Corrupt 1 | 1 . . . . . . . . . . . Sever 2 | . . . . . . . . . . 1 1 Melee Attacks . | . . . . . . . . . . . . Impact . | . . . . . . . . . . . . Slashing . | . . . . . . . . . . . . Piercing . | . . . . . . . . . . . . Sneak Attacks . | . . . . . . . . . . . . Combat Hostiles . | . . . . . . . . . . . . Follow-up Attacks . | . . . . . . . . . . . . Damage Inflicted 6097 | 63 . 61 500 . 4037 . . . . 323 1113 Guns 2332 | 63 . 21 477 . 1081 . . . . 12 678 Cannons 1873 | . . . . . 1873 . . . . . . Explosions 1680 | . . 40 23 . 1069 . . . . 252 296 Melee . | . . . . . . . . . . . . Ramming 14 | . . . . . 14 . . . . . . Kinetic 3389 | 23 . 21 477 . 2441 . . . . . 427 Thermal 776 | . . . . . 513 . . . . 12 251 Explosive 1680 | . . 40 23 . 1069 . . . . 252 296 Electromagnetic 40 | 40 . . . . . . . . . . . Impact . | . . . . . . . . . . . . Slashing 198 | . . . . . . . . . . 59 139 Piercing . | . . . . . . . . . . . . Highest Corruption 2 | . . . . . 1 . . . . . 2 Average Corruption 1 | . . . . . 1 . . . . . 1 Corruption Purged . | . . . . . . . . . . . . Corruption Blocked . | . . . . . . . . . . . . Effects 1 | . . . . . 1 . . . . . . Heat Flow Errors 1 | . . . . . 1 . . . . . . Overload Shots . | . . . . . . . . . . . . Overflow Damage 102 | . . . . . 102 . . . . . . Projectiles 83 | . . . . . 83 . . . . . . Explosions 19 | . . . . . 19 . . . . . . Melee . | . . . . . . . . . . . . Knockbacks 15 | . . . . . 15 . . . . . . Impact . | . . . . . . . . . . . . Kinetic 14 | . . . . . 14 . . . . . . Secondary 1 | . . . . . 1 . . . . . . Self-Inflicted Damage 175 | . . 13 . . 162 . . . . . . Shots 5 | . . 1 . . 4 . . . . . . Rammed 4 | . . . . . 4 . . . . . . Targets Rammed 4 | . . . . . 4 . . . . . . Kicked . | . . . . . . . . . . . . Crushed . | . . . . . . . . . . . . Highest Temperature 212 | . . . . . 212 . . . 4 1 5 Average Temperature 64 | . . . . . 67 . . . 4 1 5 Received Heat Transfer 809 | . . . 108 . 528 . 45 . 36 53 39 Siege Activations . | . . . . . . . . . . . . Martial Activations . | . . . . . . . . . . . . Shielding Activations . | . . . . . . . . . . . . Robots Disrupted . | . . . . . . . . . . . . Combat Hostiles . | . . . . . . . . . . . . Robots Corrupted . | . . . . . . . . . . . . Combat Hostiles . | . . . . . . . . . . . . Parts Fried . | . . . . . . . . . . . . Impact Corruptions . | . . . . . . . . . . . . Robots Melted . | . . . . . . . . . . . . Combat Hostiles . | . . . . . . . . . . . . Parts Melted 4 | . . . . . 2 . . . . . 2 Heat Transferred 1767 | . . . . . 1027 . . . . 37 703 Parts Sabotaged . | . . . . . . . . . . . . Parts Stolen . | . . . . . . . . . . . . Parts Stripped . | . . . . . . . . . . . . Power Chain Reactions . | . . . . . . . . . . . . Alert | -11 -10 -10 -10 -7 -5 -4 -4 -4 -4 -3 -3 ------- Run | Yrd Mat Min Sub Scr Fac Fac Upp Upp War Pro Res Maximum Alert Level 2 | . . . . . 2 . . . . . . Low Security (%) 48 | 100 100 100 . . 14 100 . . . . 100 Level 1 37 | . . . . . 63 . . . . . . Level 2 13 | . . . . . 22 . . . . . . Level 3 . | . . . . . . . . . . . . Level 4 . | . . . . . . . . . . . . Level 5 . | . . . . . . . . . . . . High Security . | . . . . . . . . . . . . Max Security . | . . . . . . . . . . . . Peak Influence 522 | 10 . 82 . . 522 140 . . . . 199 Initial 140 | . . . . . . 140 . . . . . Average 188 | . . 54 . . 297 135 . . . . 26 Influence Increases 1623 | 10 . 82 . . 914 . 150 15 50 40 362 Destroy 0b10 Robot/C 680 | . . 60 . . 440 . . . 20 40 120 Destroy 0b10 Robot/NC 50 | 10 . . . . 35 . . . . . 5 Destroy Leader 100 | . . 10 . . 80 . . . . . 10 Disable Machine 30 | . . . . . 30 . . . . . . Anti-Garrison Action 200 | . . . . . 200 . . . . . . Destroy Structure 158 | . . 12 . . 84 . . . . . 62 Partial Spotted 30 | . . . . . 30 . . . . . . Lose Combat Pursuer 375 | . . . . . 15 . 150 15 30 . 165 Influence Decreases 1480 | 10 . 60 22 . 626 158 212 83 30 60 219 Entered New Map 243 | . . . 12 . . 148 49 14 . 20 . Time Decay 916 | 10 . 60 10 . 446 10 153 69 10 40 108 Lost Part 301 | . . . . . 180 . 10 . . . 111 Lost Ally 20 | . . . . . . . . . 20 . . Squads Dispatched 13 | . . . . . 10 1 . . . . 2 Investigation 3 | . . . . . 3 . . . . . . Extermination 3 | . . . . . 2 . . . . . 1 Reinforcement 4 | . . . . . 2 1 . . . . 1 Assault . | . . . . . . . . . . . . Garrison 3 | . . . . . 3 . . . . . . Intercept . | . . . . . . . . . . . . Searches Triggered . | . . . . . . . . . . . . Construction Impeded 1 | . . . . . 1 . . . . . . Haulers Reinforced 1 | . . . . . 1 . . . . . . Active Scanning Responses . | . . . . . . . . . . . . Cargo Convoy Interrupts 1 | . . . . . 1 . . . . . . Stealth | -11 -10 -10 -10 -7 -5 -4 -4 -4 -4 -3 -3 --------- Run | Yrd Mat Min Sub Scr Fac Fac Upp Upp War Pro Res Distress Signals 3 | . 1 . . . 1 . . . . . 1 Communications Jammed . | . . . . . . . . . . . . Distress Signals . | . . . . . . . . . . . . Times Spotted 116 | . 1 3 3 . 55 . 10 1 16 3 24 Peak Tracking Total 20 | . 3 3 2 . 20 . 6 1 12 2 13 Tactical Retreats 15 | . . . . . 1 . 6 1 1 . 6 Traps | -11 -10 -10 -10 -7 -5 -4 -4 -4 -4 -3 -3 ------- Run | Yrd Mat Min Sub Scr Fac Fac Upp Upp War Pro Res Traps Triggered 4 | . . . . . 4 . . . . . . Indirectly . | . . . . . . . . . . . . Trap Hack Attempts . | . . . . . . . . . . . . Triggered . | . . . . . . . . . . . . Disarmed . | . . . . . . . . . . . . Reprogrammed . | . . . . . . . . . . . . Reused . | . . . . . . . . . . . . Traps Extracted . | . . . . . . . . . . . . Installed . | . . . . . . . . . . . . Triggered . | . . . . . . . . . . . . Machines | -11 -10 -10 -10 -7 -5 -4 -4 -4 -4 -3 -3 ---------- Run | Yrd Mat Min Sub Scr Fac Fac Upp Upp War Pro Res Machines Disabled 4 | . . . . . 2 . 1 . 1 . . Max in Single Turn 1 | . . . . . 1 . 1 . 1 . . Garrison Access 1 | . . . . . 1 . . . . . . Machines Repaired . | . . . . . . . . . . . . Machines Dismantled 2 | . . . . . . . 1 . 1 . . Machines Sabotaged . | . . . . . . . . . . . . Overloaded Fab Kills . | . . . . . . . . . . . . Hacking | -11 -10 -10 -10 -7 -5 -4 -4 -4 -4 -3 -3 --------- Run | Yrd Mat Min Sub Scr Fac Fac Upp Upp War Pro Res Machines Accessed 13 | . . . . 7 2 . 1 . 3 . . Terminals . | . . . . . . . . . . . . Fabricators . | . . . . . . . . . . . . Repair Stations . | . . . . . . . . . . . . Recycling Units 1 | . . . . . 1 . . . . . . Scanalyzers . | . . . . . . . . . . . . Garrison Access 1 | . . . . . 1 . . . . . . Total Hacks 41 | . . . . 32 4 . 1 . 4 . . Successful 39 | . . . . 32 2 . 1 . 4 . . Failed 2 | . . . . . 2 . . . . . . Catastrophic . | . . . . . . . . . . . . Database Lockouts . | . . . . . . . . . . . . Manual 3 | . . . . . 2 . . . 1 . . Terminals . | . . . . . . . . . . . . Fabricators . | . . . . . . . . . . . . Repair Stations . | . . . . . . . . . . . . Recycling Units 1 | . . . . . 1 . . . . . . Scanalyzers . | . . . . . . . . . . . . Garrison Access 3 | . . . . . 3 . . . . . . Terminal Hacks 37 | . . . . 32 . . 1 . 4 . . Record 28 | . . . . 26 . . . . 2 . . Robot Analysis 5 | . . . . 5 . . . . . . . Open Door 3 | . . . . . . . 1 . 2 . . Proto ID Catalog 1 | . . . . 1 . . . . . . . Fabricator Hacks . | . . . . . . . . . . . . Repair Station Hacks . | . . . . . . . . . . . . Recycling Unit Hacks . | . . . . . . . . . . . . Scanalyzer . | . . . . . . . . . . . . Garrison Access Hacks . | . . . . . . . . . . . . Unauthorized Hacks 2 | . . . . . 2 . . . . . . Terminals . | . . . . . . . . . . . . Fabricators . | . . . . . . . . . . . . Repair Stations . | . . . . . . . . . . . . Recycling Units 1 | . . . . . 1 . . . . . . Fedlink 1 | . . . . . 1 . . . . . . Scanalyzers . | . . . . . . . . . . . . Garrison Access 1 | . . . . . 1 . . . . . . Jam 1 | . . . . . 1 . . . . . . Data Cores Recovered . | . . . . . . . . . . . . Used . | . . . . . . . . . . . . Hacking Detections 1 | . . . . . 1 . . . . . . Full Trace Events . | . . . . . . . . . . . . Feedback Events . | . . . . . . . . . . . . Feedback Blocked . | . . . . . . . . . . . . Robot Schematics Acquired . | . . . . . . . . . . . . Robots Built . | . . . . . . . . . . . . Authchips . | . . . . . . . . . . . . Time . | . . . . . . . . . . . . Total Robot Build Rating . | . . . . . . . . . . . . Part Schematics Acquired . | . . . . . . . . . . . . Parts Built . | . . . . . . . . . . . . Authchips . | . . . . . . . . . . . . Time . | . . . . . . . . . . . . Total Part Build Rating . | . . . . . . . . . . . . Parts Repaired . | . . . . . . . . . . . . Time . | . . . . . . . . . . . . Parts Recycled . | . . . . . . . . . . . . Recycled Matter . | . . . . . . . . . . . . Retrieved Matter . | . . . . . . . . . . . . Retrieved Components . | . . . . . . . . . . . . Parts Scanalyzed . | . . . . . . . . . . . . Part Schematics Acquired . | . . . . . . . . . . . . Parts Damaged . | . . . . . . . . . . . . Bothacking | -11 -10 -10 -10 -7 -5 -4 -4 -4 -4 -3 -3 ------------ Run | Yrd Mat Min Sub Scr Fac Fac Upp Upp War Pro Res Used RIF Installer . | . . . . . . . . . . . . Robots Hacked . | . . . . . . . . . . . . Non-combat . | . . . . . . . . . . . . Combat . | . . . . . . . . . . . . Robot Hacks Applied . | . . . . . . . . . . . . Relay Couplers Released . | . . . . . . . . . . . . Fabnet Peak Effective % . | . . . . . . . . . . . . Robots Rewired 5 | . . . . . . . . . 5 . . Allies Hacked . | . . . . . . . . . . . . Hacks Repelled . | . . . . . . . . . . . . Allies | -11 -10 -10 -10 -7 -5 -4 -4 -4 -4 -3 -3 -------- Run | Yrd Mat Min Sub Scr Fac Fac Upp Upp War Pro Res Total Allies 5 | . . . . . . . . . 5 . . Largest Group 5 | . . . . . . . . . 5 . . Highest-Rated Group 284 | . . . . . . . . . 284 . . Highest-Rated Ally 68 | . . . . . . . . . 68 . . Total Orders . | . . . . . . . . . . . . Ally Attacks 6 | . . . . . . . . . 6 . . Total Damage 264 | . . . . . . . . . 264 . . Kills 1 | . . . . . . . . . 1 . . Allies Corrupted . | . . . . . . . . . . . . Allies Melted 2 | . . . . . . . . . 2 . . Intel | -11 -10 -10 -10 -7 -5 -4 -4 -4 -4 -3 -3 ------- Run | Yrd Mat Min Sub Scr Fac Fac Upp Upp War Pro Res Active Infowar (turns) 2889 | 50 143 120 846 . 988 . . . 190 271 281 Optics 988 | . . . . . 988 . . . . . . Sensors 392 | . . . . . 392 . . . . . . Seismic 1159 | 50 143 120 846 . . . . . . . . Cloaking 742 | . . . . . . . . . 190 271 281 ECM 12 | . . . . . . . . . . . 12 Robot Analysis Total 5 | . . . . 5 . . . . . . . Derelict Logs Recovered 4 | . . . . . . . 2 2 . . . Drone Launches . | . . . . . . . . . . . . Drone Recoveries . | . . . . . . . . . . . . Exploration | -11 -10 -10 -10 -7 -5 -4 -4 -4 -4 -3 -3 ------------- Run | Yrd Mat Min Sub Scr Fac Fac Upp Upp War Pro Res Turns Passed 10850 | 165 143 120 1206 4780 1477 37 567 533 1027 271 524 Spaces Moved 9859 | 93 136 76 1013 3202 1237 73 892 887 1462 394 394 Core 1098 | 9 . . . . 101 73 892 21 2 . . Treads 679 | 76 . 9 11 582 1 . . . . . . Legs . | . . . . . . . . . . . . Wheels 4968 | 8 136 67 1002 2620 1135 . . . . . . Hover 2920 | . . . . . . . . 866 1460 394 200 Flight 194 | . . . . . . . . . . . 194 Fastest Speed 29 | 50 100 100 100 110 50 50 50 50 58 58 29 Average Speed 100 | 144 100 107 109 148 97 50 61 58 59 67 65 Slowest Speed 410 | 160 100 160 160 250 410 50 100 100 250 136 360 Overloaded Moves . | . . . . . . . . . . . . Propulsion Burnouts . | . . . . . . . . . . . . Robots Hopped 6 | . . . . . . . . . . . 6 Potential Cave-ins . | . . . . . . . . . . . . Cave-ins Triggered . | . . . . . . . . . . . . Exploration Rate (%) 41 | 5 23 12 45 88 21 3 76 73 92 45 10 Regions Visited 11 Branch Regions 7 Pre-discovered Areas 4 | . . . 1 1 . . 1 1 . . . Known Exits Taken 1 | . . . . . 1 . . . . . . Unknown Exits Taken 10 | 1 1 1 1 1 . 1 1 1 1 1 . Scrap Searched 16 | . . . 3 7 . . 2 4 . . . Spaces Dug . | . . . . . . . . . . . . Terrain Destroyed 124 | . . 12 11 . 43 . . . . 14 44 Melee . | . . . . . . . . . . . . Projectile 27 | . . . . . 27 . . . . . . AOE 97 | . . 12 11 . 16 . . . . 14 44 Terrain Rammed . | . . . . . . . . . . . . Walls Destroyed . | . . . . . . . . . . . . Machines Disabled . | . . . . . . . . . . . . Actions | -11 -10 -10 -10 -7 -5 -4 -4 -4 -4 -3 -3 --------- Run | Yrd Mat Min Sub Scr Fac Fac Upp Upp War Pro Res Total 10507 | 113 143 109 1057 3240 1370 72 904 900 1610 400 589 Wait 178 | . . 30 . . 3 . . . 6 . 139 Move 9836 | 92 135 75 1012 3201 1236 72 891 886 1461 393 382 Hop 6 | . . . . . . . . . . . 6 Pick Up 52 | 8 4 . 1 14 20 . 1 1 1 . 2 Fast Attach 64 | 6 1 . . 4 14 . 3 10 14 . 12 Attach 29 | 1 . . 2 1 15 . 2 1 2 1 4 Detach 10 | . . . . . 1 . 1 1 3 1 3 Swap 25 | 1 . 2 5 7 5 . . 1 3 . 1 Drop 61 | 1 3 . 4 13 10 . 3 . 16 4 7 Fire 133 | 4 . 2 31 . 62 . . . . 1 33 Melee . | . . . . . . . . . . . . Ram 3 | . . . . . 3 . . . . . . Kick . | . . . . . . . . . . . . Crush 1 | . . . . . 1 . . . . . . Escape Stasis . | . . . . . . . . . . . . Rewire 98 | . . . 2 . . . . . 96 . . Trap . | . . . . . . . . . . . . Miscellaneous 11 | . . . . . . . 3 . 8 . . Route ------- -11/Scrapyard -10/Materials -10/Mines -10/Subcaves -7/Scraptown (discovered 2 exits: *Fac x2) -5/Factory -4/Factory -4/Upper Caves -4/Upper Caves (discovered 2 exits: [*Res] / *War) -4/Warlord -3/Proximity Caves -3/Research History --------- Turn | Location | Event 2 | -11/Scrapyard | Met Revision 17 6 | -11/Scrapyard | Discovered new exit (range 16) 166 | -11/Scrapyard | Entered Materials 286 | -10/Materials | Discovered new exit (range 11) 308 | -10/Materials | Build established: Mutant 309 | -10/Materials | Entered Mines 409 | -10/Mines | Discovered new exit (range 6) 429 | -10/Mines | Entered Subcaves 430 | -10/Subcaves | Approached by a straggling Scientist 441 | -10/Subcaves | Learned location of Zion (-7) 441 | -10/Subcaves | Met a Zionite searching for "candidates" 496 | -10/Subcaves | Disturbed a concealed Subdweller 1335 | -10/Subcaves | Shifting Twisted Machinery released Sub. Laser 1335 | -10/Subcaves | Lost 3 parts (1p1n1u) 1592 | -10/Subcaves | Scientist uncovered a shortcut to Scraptown 1617 | -10/Subcaves | A swath of the cavern ceiling suddenly collapsed 1635 | -10/Subcaves | Entered Scraptown 2017 | -7/Scraptown | Build established: Derelict-Mutant 2058 | -7/Scraptown | Visited IN-MT5's Study 2123 | -7/Scraptown | Visited TADAMA 2704 | -7/Scraptown | Visited UFD Registry 2709 | -7/Scraptown | Registered with UFD as "Softbox" 2753 | -7/Scraptown | Build established: Mutant 2821 | -7/Scraptown | Visited Science Guys 2906 | -7/Scraptown | Visited Scrapoid Research Area 2946 | -7/Scraptown | Visited Scrap Suit Storage 3006 | -7/Scraptown | Visited Scrapoid Pod Storage 3313 | -7/Scraptown | Visited Science Testing Area 3363 | -7/Scraptown | Visited Abandonware Association 3387 | -7/Scraptown | Learned abandonware demo "POISON.EXE" 3965 | -7/Scraptown | Visited Assassins FH 4015 | -7/Scraptown | Visited Cave Peace 4448 | -7/Scraptown | Visited Analyses Database 5111 | -7/Scraptown | Visited Derelict Rescue Squad 5131 | -7/Scraptown | Found DRS Beacon 5395 | -7/Scraptown | Discovered new exit (range 13) 5469 | -7/Scraptown | Guru changed UFD alias to "Fissionparser" 6116 | -7/Scraptown | Visited DA-N13 Charitable Foundation 6133 | -7/Scraptown | Found DCF Scrap (26 items) 6316 | -7/Scraptown | Met Optimus 6316 | -7/Scraptown | Accepted into 0bPrime 6406 | -7/Scraptown | Discovered new exit (range 5) 6415 | -7/Scraptown | Entered Factory 6415 | -5/Factory | Evolved 10 slots: Power x1, Propulsion x2, Utility x5, Weapon x2 6710 | -5/Factory | Build established: Derelict-Tank 7074 | -5/Factory | Garrison activated, responded to threat 7149 | -5/Factory | Lost 12 parts (2p3n3u4w) 7294 | -5/Factory | Lost 5 parts (1n3u1w) 7409 | -5/Factory | Discovered new exit (range 3) 7433 | -5/Factory | Identified exit to Factory 7557 | -5/Factory | Loaded intel: 8 recycling unit locations 7618 | -5/Factory | Build established: Scavenger-Skirmisher 7839 | -5/Factory | Released all parts (5) 7884 | -5/Factory | Core integrity fell below 50% 7889 | -5/Factory | Cargo convoy interrupted 7892 | -5/Factory | Entered another Factory area 7892 | -4/Factory | Evolved 2 slots: Propulsion x2 7917 | -4/Factory | Discovered new exit (range 10) 7929 | -4/Factory | Entered Upper Caves 7974 | -4/Upper Caves | Learned Research terminal intel 8102 | -4/Upper Caves | Build established: Mutant 8161 | -4/Upper Caves | Spotted B-86 Titan 8449 | -4/Upper Caves | Learned location of Quarantine (-2) 8464 | -4/Upper Caves | Attacked by a delusional Derelict stockpiling parts 8489 | -4/Upper Caves | Discovered new exit (range 9) 8496 | -4/Upper Caves | Entered another Upper Caves area 8506 | -4/Upper Caves | Discovered new exit (range 10) 8506 | -4/Upper Caves | Found DCF Scrap (16 items) 8585 | -4/Upper Caves | Learned Research emergency access door positions 8808 | -4/Upper Caves | Build established: Derelict-Mutant 8814 | -4/Upper Caves | Encountered a Warlord checkpoint 9011 | -4/Upper Caves | Discovered new exit (range 9) 9029 | -4/Upper Caves | Entered Warlord 9325 | -4/Warlord | Visited the Vortex Lab 9330 | -4/Warlord | Found Prototype Energy Gun 9330 | -4/Warlord | Identified Vortex Rifle 9334 | -4/Warlord | Found Prototype Energy Gun 9334 | -4/Warlord | Identified Vortex Rail 9343 | -4/Warlord | Warlord's base attacked by MAIN.C 9547 | -4/Warlord | Opened side exit 9560 | -4/Warlord | Discovered new exit (range 10) 9693 | -4/Warlord | Warlord forces counterattacked 9783 | -4/Warlord | Found Prototype Special Weapon 9783 | -4/Warlord | Identified RU-N14's Throwing Claymores v3 9793 | -4/Warlord | Rebuked by Warlord 9830 | -4/Warlord | Found Prototype Reactor 9830 | -4/Warlord | Identified Vortex Chain Reactor 9862 | -4/Warlord | Found Prototype Device 9862 | -4/Warlord | Identified Thermal Barrier 9866 | -4/Warlord | Found Prototype Device 9866 | -4/Warlord | Identified Exp. Cloaking Device 10003 | -4/Warlord | Spotted Executioner 10018 | -4/Warlord | Warlord base infiltrated, sounded retreat 10047 | -4/Warlord | Spotted Executioner 10056 | -4/Warlord | Entered Proximity Caves 10316 | -3/Proximity Caves | Discovered new exit (range 16) 10327 | -3/Proximity Caves | Entered Research 10327 | -3/Research | Evolved 2 slots: Utility x2 10329 | -3/Research | Loaded intel: 23 terminal locations 10630 | -3/Research | Lost 4 parts (2p1n1u) 10832 | -3/Research | Lost 8 parts (1p5n2u) 10851 | -3/Research | Core integrity fell below 50% 10851 | -3/Research | Self-destructed Last Messages --------------- 10838_ U-05 Engineer lays Concrete. 10839_ U-05 Engineer builds a Wall. 10839_ Xenon Bombardment Thruster destroyed. 10840_ U-05 Engineer lays Concrete. 10840_ U-05 Engineer builds a Wall. 10841_ U-05 Engineer lays Concrete. 10841_ U-05 Engineer builds a Wall. 10842_ U-05 Engineer lays Concrete. 10843_ Door malfunctions. 10843_ Acquired Xenon Bombardment Thruster. 10843_ U-05 Engineer builds a Wall. 10844_ U-05 Engineer lays Concrete. 10844_ U-05 Engineer builds a Wall. 10844_ Dropped Backup Laser III. 10845_ U-05 Engineer lays Concrete. 10846_ Lgt. Antimatter Reactor destroyed. 10846_ U-05 Engineer builds a Wall. 10847_ Knocked back. 10850_ Xenon Bombardment Thruster destroyed. Map ----- +----------------------------------------------------+ | | | | | | | | | | | | | | | | | | | ?????????????????????????????????????????????????? | | ?????????????????????????????????????????????????? | | ?????????????????????????????????????????????????? | | ?????????????????????????????????????????????????? | | ?????????????????????????????????????????????????? | | ?????????????????????????????????????????????????? | | ?????????????????????????????????????????????????? | | ?????????????????????????????????????????????????? | | ?????????????????????????????????????????????????? | | ???????????????????????#############?????????????? | | ???????????????????????# ??????????????? | | ???????????????????????# ??#????????????? | | ???????????????????????# """ """ #????????????? | | ???????????????????????# """ """ #????????????? | | ???????????????????????# """ """ #????????????? | | ???????????????????????# #????????????? | | ???????????????????????# @ #????????????? | | ???????????????????????#cc""" """ #????????????? | | ???????????????????????# c""" """ #????????????? | | ??????????????????????## """ """ #????????????? | | ??????????????????????## #????????????? | | ??????????????????????# =% #????????????? | | ???????????????###############/#########?????????? | | ?????????????? [[ #?????????? | | ?????????????? % #?????????? | | ?????????????? * #?????????? | | ?????????????? [ = #?????????? | | ?????????????# ?############# "# #?????????? | | ?????????????# ?????# # # ##?## #?????????? | | ?????????????# ?????### ##H#???# #?????????? | | ?????????????# #????## # # #???# #?????????? | | ?????????????# #????# ##/##### #?????????? | | ???????????### ###??# # #?????????? | | ?########### #??# + +?????????? | | ## #### # #?????????? | | # + # # #?????????? | | # ## # # # #?????????? | | # " ??# # # !!] # ?????????? | | # ###+"### # # !!] # ?????????? | | + / !## # # !!! # ?????????? | | " ####### ## ###### # ?????????? | +----------------------------------------------------+ Best States ------------- Heat Dissipation 78 Coolant Potential 100 Energy Generation 55 Energy Capacity 1050 Matter Stores 300 Matter Capacity 300 Sight Range 22 Robot Scan Range 15 Terrain Scan Density 10 ECM Strength 2 Cloak Strength 4 Additional Mass Support 9 Base Temperature (-) 100 Armor Coverage 225 Resistance: TH 50 Evasion (%) 64 Recoil Reduction 1 Item Schematics ----------------- None Robot Schematics ------------------ None Fabricated ------------ Nothing Repaired ---------- Nothing Alien Tech Used ----------------- None Achievements -------------- A Powerful Ally? Charge!!! Challenges ------------ None Game ------ Seed CargoGravityTriangulator Manual? 0 Play Time 01:18:36 Cumulative 78.2 hours Start 2025.06.18 @ 21:22:55 End 2025.06.18 @ 22:54:40 Sessions 1 Manual Loads 0 Difficulty Rogue Special Mode None Game No. 106 Rogue 106 Adventurer 0 Explorer 0 Win Type - Total 1 Types 1/0/0/0/0/0/0/0/0/0 Lore% 34 Gallery% 46 Achievement% 40 Wizard Run 0 Options --------- Layout 1 ASCII 0 Keyboard 0 Movement Arrows Keybinds 0 Fullscreen 1 Font 24/Smallcaps Map View 50x35 Zoom Use 0% Tactical HUD 1 Map Filters NONE Filters NONE Steam X RUN: 8bd3ad20-01fe-4e44-8c21-00b41e0d2dc2